bitfinex/quotes_ETHUSD_20260208
["timestamp","ask_amount","ask_price","bid_price","bid_amount"]
[1770581020568,2.14830934,2117.2,2116.0,4.48147448]
[1770581020767,0.96750451,2117.1,2116.0,4.48147448]
[1770581020973,0.96750451,2117.4,2116.0,4.95249071]
[1770581021477,0.96750451,2117.2,2116.0,1.18147448]
[1770581021659,0.96750451,2116.9,2116.0,1.18147448]
[1770581022054,0.96750451,2116.9,2116.0,1.18145117]
[1770581022256,0.96750451,2116.7,2116.0,1.18147052]
[1770581022456,0.96750451,2116.7,2115.9,1.1814969]
[1770581022771,0.96750451,2116.6,2115.5,4.72700121]
[1770581024448,2.14850728,2116.9,2115.9,0.001]
[1770581025068,0.95204994,2116.8,2115.9,0.001]
[1770581026580,2.1331337,2116.7,2115.9,0.001]
[1770581026876,3.3,2117.0,2115.9,0.001]
[1770581026877,0.95204994,2117.0,2115.9,0.001]
[1770581027259,2.13297615,2117.0,2115.9,0.001]
[1770581027455,0.95204994,2116.9,2115.9,0.001]
[1770581028588,0.95204994,2116.6,2115.9,0.001]
[1770581028767,0.95204994,2116.6,2115.4,1.18180958]
[1770581030874,2.13319334,2116.6,2115.4,0.47101623]
[1770581031255,0.95204994,2116.5,2115.4,0.47101623]
[1770581031775,0.95204994,2116.5,2115.3,4.72723834]
[1770581032783,2.13326781,2116.5,2115.3,0.47101623]
[1770581032988,0.95204994,2116.5,2115.3,0.47101623]
[1770581033690,2.13326332,2116.5,2115.3,0.47101623]
[1770581034072,0.95204994,2116.5,2115.3,0.47101623]
[1770581034788,0.95204994,2116.5,2115.4,1.18180958]
[1770581034960,1.18114156,2116.6,2115.5,0.47101623]
[1770581035156,2.1331915,2116.6,2115.5,0.47101623]
[1770581036291,0.95204994,2116.5,2115.4,1.18180958]
[1770581036756,0.95204994,2116.3,2115.1,4.72789006]
[1770581037464,0.95204994,2116.3,2115.1,1.18197721]
[1770581037858,0.95204994,2116.3,2115.0,1.18200164]
[1770581038067,0.95204994,2116.1,2114.8,8.02952559]
[1770581038287,0.95204994,2115.9,2115.0,1.18202699]
[1770581038604,0.95204994,2115.9,2115.5,0.001]
[1770581038965,0.95204994,2116.2,2115.5,0.001]
[1770581039367,1.01706241,2116.1,2115.5,0.001]
[1770581039575,0.95204994,2116.1,2115.5,0.001]
[1770581039776,1.96914473,2116.0,2115.5,0.001]
[1770581039978,0.95204994,2116.0,2115.5,0.001]
[1770581040184,1.96921967,2115.9,2115.5,0.001]
[1770581040358,0.95204994,2116.1,2115.5,0.001]
[1770581040564,1.01729554,2116.0,2115.5,0.001]
[1770581040764,0.95204994,2116.1,2115.5,0.001]
[1770581040966,3.15084918,2116.0,2115.5,0.001]
[1770581041175,0.95204994,2115.9,2115.5,0.001]
[1770581041772,1.18150272,2116.0,2115.5,0.001]
[1770581042094,2.13355266,2116.0,2115.5,0.001]
[1770581042398,0.95404994,2116.3,2115.5,0.001]
[1770581042776,0.95204994,2116.2,2115.5,0.001]
[1770581043181,0.95204994,2116.1,2115.5,0.001]
[1770581043387,0.002,2116.3,2115.5,0.001]
[1770581043973,0.95204994,2116.7,2115.6,10.6238971]
[1770581044183,0.95204994,2116.7,2115.5,0.47201623]
[1770581044393,3.302,2116.9,2115.7,0.47101623]
[1770581044597,1.01686566,2116.8,2115.7,0.47101623]
[1770581044765,0.95204994,2117.0,2115.7,0.47101623]
[1770581044979,0.95204994,2117.0,2115.8,1.18158616]
[1770581045182,0.002,2117.2,2116.2,10.6238971]
[1770581045400,0.95204994,2117.1,2115.8,11.80548326]
[1770581046120,0.95204994,2116.9,2115.8,1.18158616]
[1770581046275,0.95204994,2116.7,2115.8,1.18158616]
[1770581047125,0.95204994,2117.1,2116.0,11.50521012]
[1770581047413,0.95204994,2117.1,2115.9,5.36409353]
[1770581047618,0.95204994,2117.1,2116.0,11.50521012]
[1770581048647,0.002,2117.2,2116.2,0.47101623]
[1770581048839,0.002,2117.2,2116.3,3.77301623]
[1770581049038,0.002,2117.2,2116.4,1.18125118]
[1770581049344,0.95404994,2117.4,2116.6,0.47101623]
[1770581049345,0.002,2117.4,2116.6,0.47101623]
[1770581049491,0.95404994,2117.4,2116.4,1.18125118]
[1770581049692,0.95204994,2117.3,2116.5,3.302]
[1770581050007,0.95204994,2117.3,2116.4,1.18125118]
[1770581051310,0.95204994,2117.3,2116.3,4.72500472]
[1770581051711,0.002,2117.4,2116.3,5.19602095]
[1770581052008,0.002,2116.9,2116.4,0.2335703]
[1770581052209,0.002,2117.4,2116.4,0.2335703]
[1770581052402,0.002,2117.1,2116.4,0.2335703]
[1770581052721,0.95404994,2117.4,2116.3,5.19602095]
[1770581052918,0.95404994,2117.4,2116.3,4.72500472]
[1770581053119,0.002,2117.4,2116.4,0.70458653]
[1770581053697,0.95204994,2117.7,2116.6,11.50521012]
[1770581053896,0.95204994,2117.7,2116.6,14.80621012]
[1770581054104,0.95204994,2117.7,2116.3,4.72500472]
[1770581055028,0.95204994,2117.7,2116.5,0.47101623]
[1770581055327,0.95204994,2117.7,2116.6,1.18113956]
[1770581055529,0.98946907,2117.6,2116.5,1.18115711]
[1770581056434,0.98946907,2117.6,2116.4,2.55]
[1770581056601,0.93749893,2117.2,2116.1,4.72651201]
[1770581056802,0.93749893,2117.2,2116.5,1.18118715]
[1770581057002,0.93749893,2117.2,2116.4,1.18121429]
[1770581057313,0.93749893,2117.1,2116.1,1.18241864]
[1770581057707,0.93749893,2117.1,2116.1,4.48341864]
[1770581059231,0.93749893,2116.9,2116.1,4.48341864]
[1770581060411,0.93749893,2116.9,2116.1,3.302]
[1770581060625,0.93749893,2116.9,2116.1,4.48341267]
[1770581061225,0.93749893,2116.8,2116.1,4.48341267]
[1770581061529,0.93749893,2116.8,2116.1,4.48341463]
[1770581062319,0.93749893,2116.8,2116.1,0.001]
[1770581062535,0.93749893,2116.8,2116.1,1.18241184]
[1770581063621,2.11854975,2116.8,2116.1,0.001]
[1770581063818,0.93749893,2116.7,2116.1,0.001]
[1770581064513,0.93749893,2117.1,2116.1,0.001]
[1770581065632,0.93749893,2116.9,2116.3,0.001]
[1770581066641,0.93949893,2117.2,2116.3,0.001]
[1770581070131,0.93749893,2117.1,2116.3,0.001]
[1770581071823,0.93749893,2117.0,2116.3,0.001]
[1770581074123,1.18092199,2117.0,2116.3,0.001]
[1770581074326,0.93749893,2116.9,2116.3,0.001]
[1770581076142,0.93749893,2116.8,2116.3,0.001]
[1770581078850,0.93749893,2117.0,2116.3,0.001]
[1770581079719,0.002,2117.2,2116.3,0.001]
[1770581079918,0.93949893,2117.2,2116.3,0.47201623]
[1770581080746,0.93949893,2117.2,2116.3,0.001]
[1770581081854,0.002,2117.2,2116.3,0.47201623]
[1770581082054,0.93749893,2117.8,2116.7,11.50521012]
[1770581082350,0.93749893,2117.8,2116.8,3.77201623]
[1770581082534,0.002,2118.0,2116.9,0.47101623]
[1770581082535,0.93949893,2118.0,2116.9,0.47101623]
[1770581082851,0.93949893,2118.0,2117.0,4.48191639]
[1770581082852,0.93749893,2117.9,2117.0,4.48191639]
[1770581083242,0.002,2118.0,2117.0,4.95293262]
[1770581084052,0.002,2118.0,2117.1,0.70458653]
[1770581084363,0.002,2118.0,2117.1,0.47101623]
[1770581084654,0.002,2118.0,2117.2,1.18080483]
[1770581087956,0.96474414,2118.5,2117.3,0.47101623]
[1770581088261,0.96474414,2118.5,2117.2,1.18080483]
[1770581089329,0.96474414,2118.5,2117.3,3.3]
[1770581089650,1.18013595,2118.4,2117.4,1.1806933]
[1770581089859,0.96474414,2118.3,2117.4,1.1806933]
[1770581090032,0.96474414,2118.3,2117.3,1.18074526]
[1770581090237,0.96474414,2118.3,2117.2,1.18077284]
[1770581090440,0.96474414,2118.0,2117.1,1.18082386]
[1770581090637,0.96474414,2118.0,2117.3,1.18074613]
[1770581090946,0.96474414,2118.0,2117.2,1.18078425]
[1770581091652,1.18041456,2117.9,2117.0,4.72365903]
[1770581091831,0.96474414,2117.8,2117.0,4.72365903]
[1770581092167,0.96474414,2117.8,2117.0,1.18091639]
[1770581092532,0.96474414,2117.8,2116.7,4.72427732]
[1770581092837,0.96474414,2117.8,2116.9,1.18095885]
[1770581093744,0.96474414,2118.0,2116.9,1.18095885]
[1770581094157,0.96474414,2118.0,2116.9,1.65197508]
[1770581095245,0.96474414,2118.0,2117.0,0.47101623]
[1770581095749,0.96474414,2118.0,2117.1,1.18086061]
[1770581096560,0.96474414,2118.0,2117.2,3.3]
[1770581096942,0.96674414,2118.3,2117.2,3.3]
[1770581097144,0.96474414,2118.2,2117.2,3.3]
[1770581097344,0.96474414,2118.2,2117.1,15.23607073]
[1770581097657,0.96474414,2118.2,2117.2,3.3]
[1770581098246,0.96474414,2118.2,2117.3,1.18074906]
[1770581099362,0.96674414,2118.3,2117.3,1.65176529]
[1770581099775,0.96674414,2118.3,2117.3,1.18074906]
[1770581100158,0.96474414,2118.1,2117.3,1.18074906]
[1770581100352,0.96474414,2118.1,2117.1,1.18082523]
[1770581100564,0.96474414,2118.1,2117.0,1.18087504]
[1770581100869,0.96474414,2117.7,2116.7,1.18105419]
[1770581101059,0.96474414,2117.7,2116.8,1.18101982]
[1770581101266,0.96474414,2117.7,2117.0,1.18091367]
[1770581101472,0.96474414,2117.7,2116.5,4.72565384]
[1770581101690,0.05197014,2117.9,2116.5,0.001]
[1770581101691,1.01671428,2117.5,2116.5,0.001]
[1770581102200,0.96474414,2117.1,2116.5,0.001]
[1770581103681,4.77387099,2117.8,2116.5,0.001]
[1770581103682,0.96474414,2117.4,2116.5,0.001]
[1770581104562,0.96474414,2117.7,2116.5,3.301]
[1770581105279,0.96474414,2117.7,2116.7,0.001]
[1770581105489,0.002,2117.8,2116.7,11.97722635]
[1770581106498,0.002,2117.8,2116.8,1.41459826]
[1770581106960,0.002,2117.8,2116.9,0.47101623]
[1770581107160,0.002,2117.8,2116.8,1.41459826]
[1770581107370,0.96674414,2117.8,2116.8,1.18102796]
[1770581108900,1.18052604,2117.7,2116.7,4.72511186]
[1770581109057,0.96474414,2117.6,2116.7,4.72511186]
[1770581111089,0.96674414,2117.8,2116.7,5.19612809]
[1770581111789,0.96674414,2117.8,2116.7,4.72511186]
[1770581113186,0.96674414,2117.8,2116.8,0.2335703]
[1770581115283,0.96674414,2117.8,2116.9,1.18097217]
[1770581115793,0.98955313,2117.7,2116.9,1.18097217]
[1770581117500,0.98955313,2117.6,2116.9,1.18097217]
[1770581117874,0.98955313,2117.6,2117.0,0.001]
[1770581118577,1.18052951,2117.7,2117.0,0.001]
[1770581118578,1.6,2117.4,2117.0,0.001]
[1770581118777,0.98955313,2117.3,2117.0,0.001]
[1770581120593,0.98955313,2117.2,2117.0,0.001]
[1770581122077,0.98955313,2117.0,2116.7,0.001]
[1770581122679,0.98955313,2117.0,2116.5,0.001]
[1770581123706,0.98955313,2116.8,2116.5,0.001]
[1770581124085,0.98955313,2116.8,2116.5,0.00300001]
[1770581124476,0.98955313,2116.8,2116.5,0.001]
[1770581125580,2.17060601,2116.8,2116.5,0.001]
[1770581125800,0.98955313,2116.8,2116.5,0.001]
[1770581126593,0.98955313,2116.8,2116.5,0.00300001]
[1770581129288,4.72329456,2117.2,2116.5,0.001]
[1770581129289,0.98955313,2117.2,2116.5,0.001]
[1770581129487,0.98955313,2117.2,2116.6,0.00200001]
[1770581130078,2.17037441,2117.2,2116.6,0.00200001]
[1770581130279,0.98955313,2117.1,2116.6,0.00200001]
[1770581130881,0.98955313,2117.4,2116.7,0.001]
[1770581131080,0.98955313,2117.4,2116.8,0.00200001]
[1770581131512,0.002,2117.0,2116.8,0.00200001]
[1770581132014,2.17024939,2117.4,2116.7,0.001]
[1770581132313,0.98955313,2117.3,2116.7,0.001]
[1770581133983,2.68955313,2117.2,2116.7,0.001]
[1770581135012,0.98955313,2117.1,2116.7,0.001]
[1770581136593,0.98955313,2117.3,2116.7,0.001]
[1770581138928,0.98955313,2117.2,2116.7,0.001]
[1770581143122,4.72210559,2117.7,2116.7,0.001]
[1770581143123,0.002,2117.8,2116.7,0.001]
[1770581143289,0.98955313,2117.6,2116.7,1.18208376]
[1770581143990,0.98955313,2117.6,2116.9,0.001]
[1770581144388,0.002,2117.1,2116.9,0.001]
[1770581145152,0.002,2117.8,2116.9,0.001]
[1770581145444,0.002,2117.8,2117.1,0.90581488]
[1770581146141,0.002,2118.3,2117.3,0.90581488]
[1770581146433,0.97584126,2118.3,2117.3,0.90581488]
[1770581146799,0.002,2118.3,2117.3,0.90581488]
[1770581147510,0.002,2118.3,2117.5,0.90581488]
[1770581148031,0.002,2118.5,2117.7,0.90581488]
[1770581148233,0.002,2118.5,2117.9,0.90581488]
[1770581148447,0.97494126,2118.9,2117.9,0.90581488]
[1770581149044,0.97384126,2118.8,2117.5,0.90581488]
[1770581149331,1.0258114,2118.8,2117.4,1.1806933]
[1770581149527,0.97384126,2118.6,2117.2,5.38656394]
[1770581149950,0.97384126,2118.6,2117.3,5.62858809]
[1770581150121,0.97384126,2118.6,2117.4,0.90581488]
[1770581150313,4.7207034,2118.9,2117.4,0.90581488]
[1770581150314,2.15483993,2118.9,2117.4,0.90581488]
[1770581150509,0.97384126,2118.8,2117.4,0.90581488]
[1770581150738,0.97384126,2118.8,2117.6,0.90581488]
[1770581150935,0.0011,2118.9,2117.8,0.90581488]
[1770581151627,0.0011,2118.9,2117.9,2.08622944]
[1770581152024,0.0011,2118.9,2118.0,0.90581488]
[1770581152626,0.0011,2118.9,2118.2,0.90581488]
[1770581152806,0.0011,2118.9,2118.1,3.3]
[1770581153007,0.97494126,2118.9,2118.1,3.3]
[1770581153334,0.0011,2118.9,2118.1,3.3]
[1770581153713,0.0011,2118.9,2118.2,1.18024737]
[1770581154612,0.0011,2118.9,2118.3,0.90581488]
[1770581155248,0.0011,2118.9,2118.2,1.18024737]
[1770581155621,0.0011,2118.9,2118.2,2.08606225]
[1770581156830,0.0011,2118.9,2118.3,0.90581488]
[1770581157640,0.0011,2118.9,2118.4,0.001]
[1770581157848,0.002,2118.7,2118.4,0.001]
[1770581158046,0.0011,2118.9,2118.4,0.001]
[1770581158344,0.0011,2118.9,2118.4,1.18113595]
[1770581160742,0.97494126,2118.9,2118.4,0.001]
[1770581161315,0.97494126,2118.9,2118.1,0.001]
[1770581161518,0.97494126,2118.9,2118.2,1.18024081]
[1770581161835,0.97494126,2118.9,2118.1,1.18126021]
[1770581162026,0.97494126,2118.9,2118.2,1.18024501]
[1770581162226,0.97494126,2118.9,2118.1,1.18130237]
[1770581162447,0.97494126,2118.9,2118.2,1.18024414]
[1770581162754,0.0011,2118.9,2118.1,0.001]
[1770581163243,0.97384126,2118.8,2118.1,0.001]
[1770581163413,0.0011,2118.9,2118.1,0.001]
[1770581163817,0.97494126,2118.9,2118.1,0.001]
[1770581164059,0.0011,2119.1,2118.3,0.90581488]
[1770581164347,0.002,2119.4,2118.4,3.298]
[1770581164550,0.002,2119.4,2118.4,4.20381488]
[1770581165245,0.002,2119.4,2118.5,2.08589512]
[1770581165549,0.002,2119.4,2118.6,0.90581488]
[1770581165744,0.0011,2119.7,2118.6,10.61444131]
[1770581165927,0.0011,2119.7,2118.7,0.90581488]
[1770581167123,0.0011,2119.7,2119.0,1.17980179]
[1770581167349,0.0011,2119.7,2119.1,4.20381488]
[1770581167771,0.0011,2120.0,2119.4,10.61444131]
[1770581168068,1.1789143,2120.6,2119.4,0.90581488]
[1770581168357,0.97384126,2120.7,2119.5,0.90581488]
[1770581168557,0.97384126,2120.6,2119.3,0.2335703]
[1770581168763,0.97384126,2120.6,2119.4,3.298]
[1770581169265,0.0011,2120.8,2119.6,0.2335703]
[1770581169571,0.0011,2120.8,2119.7,0.90581488]
[1770581170227,0.97384126,2120.7,2119.5,1.17952347]
[1770581170639,0.0011,2119.7,2119.5,1.17952347]
[1770581170821,0.0011,2119.9,2119.4,1.17954432]
[1770581171245,0.97384126,2119.8,2118.9,1.17985747]
[1770581171648,0.97384126,2119.8,2118.8,4.71951325]
[1770581171649,0.97384126,2119.8,2118.8,1.17989218]
[1770581173236,0.0011,2119.9,2118.9,0.2335703]
[1770581173445,0.0011,2119.9,2119.1,0.2335703]
[1770581174656,0.97384126,2119.8,2118.8,1.17989218]
[1770581174953,0.0011,2119.9,2118.8,4.47689218]
[1770581175255,0.0011,2119.9,2119.0,1.17980179]
[1770581175663,0.90472124,2119.9,2118.9,1.17983041]
[1770581177442,0.90362124,2119.7,2118.4,0.001]
[1770581177667,1.17935654,2119.8,2118.4,0.001]
[1770581177668,0.90362124,2119.4,2118.4,0.001]
[1770581178163,0.95559138,2119.2,2118.4,0.001]
[1770581178362,0.90362124,2119.0,2118.1,0.001]
[1770581178550,0.90362124,2118.8,2118.1,0.001]
[1770581179465,0.90362124,2118.6,2118.1,0.001]
[1770581180468,0.90362124,2118.9,2118.1,0.001]
[1770581181757,2.08352244,2118.9,2118.1,0.001]
[1770581181966,0.90362124,2118.9,2118.1,0.001]
[1770581182173,2.08349667,2118.9,2118.1,0.001]
[1770581182342,0.90362124,2118.8,2118.1,0.001]
[1770581182539,0.90362124,2118.8,2118.3,0.001]
[1770581183383,0.90362124,2118.3,2118.0,0.001]
[1770581183682,0.90362124,2118.1,2117.3,0.001]
[1770581183982,1.18035882,2118.0,2117.4,0.00100001]
[1770581184550,2.08392853,2118.1,2117.3,0.001]
[1770581184750,2.08392853,2118.1,2117.4,0.00100001]
[1770581184751,0.90362124,2118.0,2117.4,0.00100001]
[1770581185152,0.90362124,2118.0,2117.3,0.001]
[1770581185651,0.90362124,2118.0,2116.7,8.02331176]
[1770581185652,0.90362124,2117.7,2116.7,0.001]
[1770581185875,0.90362124,2117.5,2116.7,0.001]
[1770581186073,0.90362124,2117.3,2116.7,0.001]
[1770581186674,0.90362124,2117.3,2116.9,0.00200001]
[1770581188079,1.18067175,2117.5,2116.9,0.00200001]
[1770581188280,0.90362124,2117.6,2116.9,0.00200001]
[1770581188483,0.90362124,2117.5,2116.9,0.00200001]
[1770581189482,0.90362124,2117.5,2116.7,0.001]
[1770581189483,0.95559138,2117.5,2116.7,0.001]
[1770581189789,0.90362124,2117.1,2116.7,0.001]
[1770581189975,0.90362124,2116.9,2116.7,0.001]
[1770581190493,1.18089898,2117.1,2116.7,0.001]
[1770581190697,1.18089898,2117.1,2116.7,0.00200001]
[1770581191483,2.08452022,2117.1,2116.7,0.00200001]
[1770581191883,2.08452022,2117.1,2116.7,0.001]
[1770581192078,2.08452022,2117.1,2116.7,0.00200001]
[1770581192762,16.18875651,2117.7,2116.7,0.00200001]
[1770581192763,0.90362124,2117.6,2116.7,0.00200001]
[1770581193059,0.90362124,2117.5,2116.7,0.00200001]
[1770581193790,2.08420303,2117.6,2116.7,0.00200001]
[1770581194087,4.72232716,2117.8,2116.7,0.00200001]
[1770581194088,2.08431454,2117.4,2116.7,0.00200001]
[1770581195594,2.08431454,2117.4,2116.9,0.001]
[1770581195888,1.18067118,2117.5,2116.9,0.001]
[1770581196082,1.18058179,2117.6,2117.0,0.00100001]
[1770581196594,1.18058179,2117.6,2117.1,0.00100001]
[1770581196966,0.90362124,2117.5,2117.1,0.00100001]
[1770581198596,4.20162124,2117.9,2117.1,0.00100001]
[1770581198786,5.38207643,2117.9,2116.9,0.001]
[1770581198975,0.90362124,2117.8,2117.0,0.00100001]
[1770581199375,3.298,2117.9,2117.0,0.00100001]
[1770581199597,4.47843587,2117.9,2117.0,0.00100001]
[1770581199987,2.08393683,2118.1,2117.0,0.00100001]
[1770581200298,0.90362124,2117.9,2117.0,0.00100001]
[1770581200793,2.08409153,2117.8,2117.0,0.00100001]
[1770581200999,0.90362124,2117.7,2117.0,0.00100001]
[1770581203191,1.18058179,2117.6,2117.0,0.00100001]
[1770581204580,2.08420303,2117.6,2117.0,0.00100001]
[1770581204780,1.18056841,2117.7,2117.0,0.00100001]
[1770581206279,4.48051053,2117.8,2117.0,0.00100001]
[1770581206487,5.47085011,2117.8,2117.0,0.00100001]
[1770581207493,5.47085011,2117.8,2117.1,0.00100001]
[1770581207678,1.18051053,2117.8,2117.0,0.00100001]
[1770581207880,1.1803031,2118.1,2117.0,0.00100001]
[1770581208084,1.1803031,2118.1,2117.1,0.00100001]
[1770581208308,2.17062881,2118.2,2117.1,0.00100001]
[1770581208506,2.17062881,2118.2,2117.2,0.00100001]
[1770581208807,1.18028923,2118.2,2117.2,0.97119082]
[1770581209189,0.002,2117.5,2117.3,1.18074906]
[1770581209506,1.1820565,2118.6,2117.4,0.97019081]
[1770581209707,1.1820565,2118.6,2117.2,1.18080003]
[1770581209708,0.99033958,2118.1,2117.2,1.18080003]
[1770581209917,0.05197014,2118.2,2117.3,0.00100001]
[1770581209918,0.99033958,2117.9,2117.3,0.00100001]
[1770581210085,4.29033958,2118.2,2117.2,1.18180469]
[1770581210279,2.00418089,2118.1,2117.2,1.18180469]
[1770581210484,0.99033958,2118.1,2117.2,1.18180469]
[1770581210703,0.99033958,2118.1,2117.3,0.00100001]
[1770581212009,0.99033958,2117.9,2117.3,0.00100001]
[1770581212184,1.01555347,2117.8,2117.3,0.00100001]
[1770581212385,1.01555347,2117.7,2117.3,0.00100001]
[1770581212807,2.00589305,2117.7,2117.1,0.001]
[1770581213009,2.24896856,2117.9,2117.2,0.00100001]
[1770581213311,2.27417759,2117.8,2117.2,0.00100001]
[1770581213506,1.01554861,2117.7,2117.2,0.00100001]
[1770581214285,1.18058179,2117.6,2117.2,0.00100001]
[1770581214481,1.18058179,2117.6,2117.1,0.001]
[1770581214684,1.18058179,2117.6,2117.2,0.00100001]
[1770581215314,2.17092137,2117.6,2117.2,0.00100001]
[1770581215514,2.17092137,2117.6,2117.1,0.001]
[1770581215515,1.01710161,2117.5,2117.1,0.001]
[1770581215686,2.17092137,2117.6,2117.2,0.00100001]
[1770581216006,1.01709598,2117.5,2117.2,0.00100001]
[1770581216187,1.18058179,2117.6,2117.2,0.00100001]
[1770581216514,1.01721183,2117.5,2117.2,0.00100001]
[1770581216715,2.43913734,2117.8,2117.2,0.00100001]
[1770581216898,1.01731788,2117.7,2117.2,0.00100001]
[1770581217098,1.01731788,2117.6,2117.2,0.00100001]
[1770581217298,2.43913734,2117.8,2117.2,0.00100001]
[1770581217607,1.01732622,2117.7,2117.2,0.00100001]
[1770581217800,1.01732622,2117.6,2117.2,0.00100001]
[1770581218108,2.4390121,2118.0,2117.1,0.001]
[1770581218294,1.01717197,2117.9,2117.1,0.001]
[1770581218497,1.01717197,2117.8,2117.2,0.00100001]
[1770581218696,2.19766267,2117.8,2117.2,0.00100001]
[1770581218897,1.1804907,2117.8,2117.2,0.00100001]
[1770581219098,1.01717865,2117.7,2117.2,0.00100001]
[1770581219301,1.1804907,2117.8,2117.2,0.00100001]
[1770581219504,1.01712718,2117.7,2117.2,0.00100001]
[1770581219701,1.1804907,2117.8,2117.2,0.00100001]
[1770581219917,1.01712718,2117.7,2117.3,0.00100001]
[1770581220118,1.1804907,2117.8,2117.2,0.00100001]
[1770581220321,1.01735295,2117.7,2117.2,0.00100001]
[1770581220618,1.18041456,2117.9,2117.2,0.00100001]
[1770581220821,1.0173528,2117.8,2117.3,0.00100001]
[1770581221035,1.67875521,2118.1,2117.2,0.97119082]
[1770581221036,1.25862898,2118.1,2117.2,0.97119082]
[1770581221197,1.01769867,2118.0,2117.3,0.001]
[1770581221401,1.01769867,2117.9,2117.3,0.001]
[1770581221714,1.18032285,2118.1,2117.4,0.00100001]
[1770581221912,1.01758349,2118.0,2117.3,0.001]
[1770581222098,1.01758349,2117.9,2117.4,0.00100001]
[1770581222293,1.01804457,2117.8,2117.4,0.00100001]
[1770581222518,3.42927536,2118.1,2117.4,0.00100001]
[1770581222713,1.01804937,2118.0,2117.4,0.00100001]
[1770581222912,1.01804937,2117.9,2117.4,0.00100001]
[1770581223125,1.01804937,2117.8,2117.4,0.00100001]
[1770581223306,3.42927536,2118.1,2117.4,0.00100001]
[1770581223509,1.01826112,2118.0,2117.4,0.97119082]
[1770581223715,3.3,2118.2,2117.4,0.97119082]
[1770581223932,1.01815368,2118.1,2117.4,0.97119082]
[1770581224107,4.48024958,2118.2,2117.4,0.97119082]
[1770581224321,1.01824472,2118.1,2117.4,0.97119082]
[1770581224516,3.3,2118.2,2117.4,0.97119082]
[1770581224718,1.01794998,2118.1,2117.5,1.18063754]
[1770581225013,2.17239162,2118.6,2117.5,2.15082835]
[1770581225220,1.01799422,2118.5,2117.6,0.00100001]
[1770581225411,0.002,2118.6,2117.8,0.97019081]
[1770581225805,1.18203641,2118.6,2117.9,0.00100001]
[1770581226005,0.002,2118.6,2117.9,0.00100001]
[1770581226614,0.002,2118.6,2117.9,1.18041456]
[1770581227009,0.002,2118.6,2118.0,0.00100001]
[1770581230043,0.99233958,2118.6,2118.0,0.00100001]
[1770581230711,1.18008024,2118.5,2118.0,0.00100001]
[1770581230915,2.1724007,2118.6,2118.0,0.00100001]
[1770581232938,0.002,2118.6,2118.0,0.00100001]
[1770581233508,2.16988918,2119.5,2118.0,4.26919081]
[1770581233818,2.16988918,2119.5,2118.1,0.97119082]
[1770581233819,0.99033958,2119.3,2118.1,0.97119082]
[1770581234218,1.1795496,2119.5,2118.1,0.97119082]
[1770581234419,1.01377811,2119.4,2118.1,0.97119082]
[1770581234618,1.1795496,2119.5,2118.1,0.97119082]
[1770581234839,1.0137501,2119.4,2118.1,0.97119082]
[1770581235040,1.1795496,2119.5,2118.3,0.91541197]
[1770581235338,0.002,2118.4,2118.1,1.18129775]
[1770581235508,0.002,2118.4,2118.1,0.00100001]
[1770581236132,0.002,2118.4,2118.1,1.18129479]
[1770581236714,0.002,2118.4,2118.1,0.00100001]
[1770581237543,0.002,2118.4,2118.2,0.00100001]
[1770581237838,0.002,2118.4,2118.0,0.00100001]
[1770581241323,0.94719199,2119.2,2118.1,0.00100001]
[1770581241641,1.01313813,2119.1,2118.0,0.00100001]
[1770581241844,0.94719199,2119.0,2118.0,0.00100001]
[1770581242345,11.83792278,2119.3,2118.0,0.00100001]
[1770581242346,0.94719199,2118.8,2118.0,0.00100001]
[1770581242550,0.94719199,2118.6,2118.0,0.00100001]
[1770581243047,0.94719199,2118.6,2117.9,0.001]
[1770581244014,0.94719199,2118.6,2118.0,0.00100001]
[1770581244221,1.17994787,2118.8,2118.0,0.00100001]
[1770581244418,1.01415066,2118.7,2118.1,0.00100001]
[1770581244614,1.17994787,2118.8,2118.0,0.00100001]
[1770581245547,1.17994787,2118.8,2118.1,0.00100001]
[1770581245845,0.94719199,2118.6,2118.0,0.00100001]
[1770581246543,0.94719199,2118.4,2118.0,0.00100001]
[1770581248750,2.12735632,2118.4,2118.0,0.00100001]
[1770581249322,2.12735632,2118.4,2118.2,0.001]
[1770581249522,0.002,2118.4,2118.2,0.001]
[1770581250764,0.00099999,2118.4,2118.2,0.001]
[1770581255167,0.00099999,2118.4,2118.0,0.001]
[1770581255168,1.96554241,2118.3,2118.0,0.001]
[1770581255342,1.96554241,2118.2,2117.6,0.001]
[1770581255542,1.01835042,2118.1,2117.6,0.001]
[1770581257231,1.18024737,2118.2,2117.6,0.001]
[1770581257973,1.01793849,2118.1,2117.6,0.001]
[1770581258153,4.48017801,2118.4,2117.6,0.001]
[1770581258356,1.01778292,2118.3,2117.6,0.001]
[1770581258551,4.48017801,2118.4,2117.6,0.001]
[1770581258855,1.01779282,2118.3,2117.6,0.001]
[1770581259056,4.48017801,2118.4,2117.6,0.001]
[1770581259258,2.1980161,2118.3,2117.6,0.001]
[1770581259450,4.48016309,2118.4,2117.6,0.001]
[1770581259776,1.01770844,2118.3,2117.6,0.001]
[1770581259976,4.48016309,2118.4,2117.6,0.001]
[1770581260279,1.01770896,2118.3,2117.6,0.001]
[1770581260478,4.48016309,2118.4,2117.6,0.001]
[1770581260782,1.01764121,2118.3,2117.6,0.001]
[1770581260948,4.48016309,2118.4,2117.6,0.001]
[1770581261283,0.94719199,2118.1,2117.6,0.001]
[1770581263468,2.12753385,2118.1,2117.8,0.001]
[1770581263644,0.002,2118.0,2117.8,0.001]
[1770581270188,3.29999999,2118.4,2117.8,0.001]
[1770581271187,1.01844376,2118.3,2117.8,0.001]
[1770581271386,1.94252496,2118.2,2117.8,0.001]
[1770581271553,1.01844376,2118.1,2117.8,0.001]
[1770581272348,1.18035882,2118.0,2117.8,0.001]
[1770581273273,1.18034418,2118.1,2117.8,0.001]
[1770581273478,2.10437117,2118.2,2117.8,0.001]
[1770581273652,1.01887088,2118.1,2117.8,0.001]
[1770581273850,2.10437117,2118.2,2117.8,0.001]
[1770581274071,1.01887166,2118.1,2117.8,0.001]
[1770581274378,2.10437117,2118.2,2117.8,0.001]
[1770581274556,4.7208456,2118.3,2117.8,0.001]
[1770581274557,1.01884533,2118.1,2117.8,0.001]
[1770581274757,1.18025211,2118.2,2117.8,0.001]
[1770581276277,0.0011,2118.0,2117.8,0.001]